lending/lending_fUSD_20241124
["ID","MTS","AMOUNT","RATE_DAILY","PERIOD"]
[343186314,1732423836769,-500.0,0.00043496,2]
[343186315,1732423836778,-500.0,0.00043496,2]
[343186316,1732423836787,-500.0,0.00043496,2]
[343186317,1732423836796,-500.0,0.00043496,2]
[343186318,1732423836806,-500.0,0.00043496,2]
[343186319,1732423836815,-500.0,0.00043496,2]
[343186320,1732423836824,-500.0,0.00043496,2]
[343186321,1732423836833,-223898.8183,0.00043497,2]
[343186322,1732423836842,-5000.0,0.00043497,14]
[343186323,1732423836851,-4683.019305,0.00043497,14]
[343186324,1732423836861,-2048.9,0.000435,60]
[343186325,1732423836870,-500.0,0.00043594,2]
[343186326,1732423836879,-1217.85,0.00043594,2]
[343186327,1732423836889,-690.04,0.00043594,2]
[343186328,1732423836898,-619.07,0.00043594,2]
[343186329,1732423836907,-1207.56,0.00043594,2]
[343186330,1732423836918,-1488.78,0.00043594,2]
[343186331,1732423836927,-627.1,0.00043594,2]
[343186332,1732423836937,-500.0,0.00043594,2]
[343186333,1732423836948,-500.0,0.00043594,2]
[343186334,1732423836957,-6640.85,0.00043594,2]
[343186335,1732423836966,-572.16,0.00043594,2]
[343186336,1732423836976,-500.0,0.00043594,2]
[343186337,1732423836986,-523.6066843,0.00043594,2]
[343186338,1732423836996,-1899.55,0.00043594,2]
[343186339,1732423837007,-500.0,0.00043594,2]
[343186340,1732423837016,-500.0,0.00043594,2]
[343186341,1732423837026,-353.16,0.00043595,2]
[343186342,1732423837035,-500.0,0.00043595,2]
[343186343,1732423837045,-500.0,0.00043595,2]
[343186344,1732423837054,-500.0,0.00043595,2]
[343186345,1732423837064,-500.0,0.00043595,2]
[343186346,1732423837073,-271.41,0.00043595,2]
[343186347,1732423837083,-500.0,0.00043595,2]
[343186348,1732423837092,-500.0,0.00043595,2]
[343186349,1732423837101,-500.0,0.00043595,2]
[343186350,1732423837111,-500.0,0.00043595,2]
[343186351,1732423837120,-500.0,0.00043595,2]
[343186352,1732423837129,-500.0,0.00043595,2]
[343186353,1732423837138,-500.0,0.00043595,2]
[343186354,1732423837147,-500.0,0.00043595,2]
[343186355,1732423837158,-500.0,0.00043595,2]
[343186356,1732423837167,-607.80668832,0.00043595,2]
[343186357,1732423837176,-500.0,0.00043595,2]
[343186358,1732423837186,-500.0,0.00043595,2]
[343186359,1732423837195,-500.0,0.00043595,2]
[343186360,1732423837204,-500.0,0.00043595,2]
[343186361,1732423837214,-500.0,0.00043595,2]
[343186362,1732423837223,-500.0,0.00043595,2]
[343186363,1732423837232,-500.0,0.00043595,2]
[343186364,1732423837242,-500.0,0.00043595,2]
[343186365,1732423837253,-500.0,0.00043595,2]
[343186366,1732423837263,-500.0,0.00043595,2]
[343186367,1732423837272,-500.0,0.00043595,2]
[343186368,1732423837281,-500.0,0.00043595,2]
[343186369,1732423837292,-500.0,0.00043595,2]
[343186370,1732423837301,-505.77565942,0.00043595,2]
[343186371,1732423837310,-500.0,0.00043595,2]
[343186372,1732423837320,-500.0,0.00043595,2]
[343186373,1732423837330,-503.85785824,0.00043595,2]
[343186374,1732423837340,-500.0,0.00043595,2]
[343186375,1732423837350,-500.0,0.00043595,2]
[343186376,1732423837359,-490.96,0.00043595,2]
[343186377,1732423837369,-500.0,0.00043595,2]
[343186378,1732423837379,-500.0,0.00043595,2]
[343186379,1732423837388,-500.0,0.00043595,2]
[343186380,1732423837397,-252.48941632,0.00043595,2]
[343186381,1732423837407,-500.0,0.00043595,2]
[343186382,1732423837416,-500.0,0.00043595,2]
[343186383,1732423837425,-549.71,0.00043595,2]
[343186384,1732423837434,-1627.15,0.00043595,2]
[343186385,1732423837444,-500.0,0.00043595,2]
[343186386,1732423837453,-500.0,0.00043595,2]
[343186387,1732423837465,-689.15,0.00043595,2]
[343186388,1732423837475,-502.59626371,0.00043595,2]
[343186389,1732423837484,-500.0,0.00043595,2]
[343186390,1732423837494,-503.93435975,0.00043595,2]
[343186391,1732423837508,-500.0,0.00043595,2]
[343186392,1732423837517,-500.0,0.00043595,2]
[343186393,1732423837527,-500.0,0.00043595,2]
[343186394,1732423837537,-500.0,0.00043595,2]
[343186395,1732423837547,-500.0,0.00043595,2]
[343186396,1732423837557,-500.0,0.00043595,2]
[343186397,1732423837567,-500.0,0.00043595,2]
[343186398,1732423837576,-500.0,0.00043595,2]
[343186399,1732423837586,-506.21946854,0.00043595,2]
[343186400,1732423837601,-500.0,0.00043595,2]
[343186401,1732423837611,-528.5969027,0.00043595,2]
[343186402,1732423837620,-500.0,0.00043595,2]
[343186403,1732423837630,-500.0,0.00043595,2]
[343186404,1732423837641,-500.0,0.00043595,2]
[343186405,1732423837651,-500.0,0.00043595,2]
[343186406,1732423837660,-500.0,0.00043595,2]
[343186407,1732423837671,-500.0,0.00043595,2]
[343186408,1732423837681,-336.43223327,0.00043595,2]
[343186409,1732423837691,-500.0,0.00043595,2]
[343186410,1732423837700,-500.0,0.00043595,2]
[343186411,1732423837709,-500.0,0.00043595,2]
[343186412,1732423837719,-826.55,0.00043595,2]
[343186413,1732423837727,-500.0,0.00043595,2]
[343186414,1732423837736,-500.0,0.00043595,2]
[343186415,1732423837746,-500.0,0.00043595,2]
[343186416,1732423837759,-500.0,0.00043595,2]
[343186417,1732423837768,-500.0,0.00043595,2]
[343186418,1732423837778,-508.81417458,0.00043595,2]
[343186419,1732423837787,-500.0,0.00043595,2]
[343186420,1732423837797,-500.0,0.00043595,2]
[343186421,1732423837806,-500.0,0.00043595,2]
[343186422,1732423837816,-500.0,0.00043595,2]
[343186423,1732423837826,-500.0,0.00043595,2]
[343186424,1732423837836,-500.0,0.00043595,2]
[343186425,1732423837846,-500.0,0.00043595,2]
[343186426,1732423837857,-500.0,0.00043595,2]
[343186427,1732423837866,-500.0,0.00043595,2]
[343186428,1732423837876,-1813.32,0.00043595,2]
[343186429,1732423837885,-500.0,0.00043595,2]
[343186430,1732423837895,-500.0,0.00043595,2]
[343186431,1732423837904,-500.0,0.00043595,2]
[343186432,1732423837913,-500.0,0.00043595,2]
[343186433,1732423837923,-500.0,0.00043595,2]
[343186434,1732423837932,-500.0,0.00043595,2]
[343186435,1732423837942,-500.0,0.00043595,2]
[343186436,1732423837951,-500.0,0.00043595,2]
[343186437,1732423837961,-500.0,0.00043595,2]
[343186438,1732423837971,-500.0,0.00043595,2]
[343186439,1732423837979,-500.0,0.00043595,2]
[343186440,1732423837988,-500.0,0.00043595,2]
[343186441,1732423837997,-500.0,0.00043595,2]
[343186442,1732423838009,-500.0,0.00043595,2]
[343186443,1732423838019,-500.0,0.00043595,2]
[343186444,1732423838029,-500.0,0.00043595,2]
[343186445,1732423838038,-500.0,0.00043595,2]
[343186447,1732423838047,-508.59918408,0.00043596,2]
[343186449,1732423838056,-157.99545686,0.00043596,2]
[343186451,1732423838066,-500.0,0.00043596,2]
[343186453,1732423838076,-500.0,0.00043596,2]
[343186455,1732423838085,-500.0,0.00043596,2]
[343186457,1732423838095,-500.0,0.00043596,2]
[343186458,1732423838104,-500.0,0.00043596,2]
[343186459,1732423838113,-500.0,0.00043596,2]
[343186460,1732423838121,-500.0,0.00043596,2]
[343186462,1732423838130,-500.0,0.00043596,2]
[343186463,1732423838140,-500.0,0.00043596,2]
[343186465,1732423838150,-500.0,0.00043596,2]
[343186466,1732423838159,-159.21441861,0.00043596,2]
[343186467,1732423838174,-509.98405317,0.00043596,2]
[343186468,1732423838183,-513.67849711,0.00043596,2]
[343186469,1732423838191,-525.34964829,0.00043596,2]
[343186470,1732423838200,-500.0,0.00043596,2]
[343186471,1732423838209,-519.03477641,0.00043596,2]
[343186472,1732423838219,-500.0,0.00043596,2]
[343186473,1732423838227,-518.4070479,0.00043596,2]
[343186474,1732423838237,-500.0,0.00043596,2]
[343186475,1732423838246,-504.89729329,0.00043596,2]
[343186476,1732423838258,-770.58,0.00043596,2]
[343186477,1732423838268,-770.58,0.00043596,2]
[343186478,1732423838277,-500.0,0.00043596,2]
[343186479,1732423838287,-500.0,0.00043596,2]
[343186480,1732423838296,-500.0,0.00043596,2]
[343186481,1732423838305,-500.0,0.00043596,2]
[343186482,1732423838314,-500.0,0.00043596,2]
[343186483,1732423838323,-500.0,0.00043596,2]
[343186484,1732423838333,-500.0,0.00043596,2]
[343186485,1732423838342,-500.0,0.00043596,2]
[343186486,1732423838352,-500.0,0.00043596,2]
[343186487,1732423838361,-500.0,0.00043596,2]
[343186488,1732423838371,-500.0,0.00043596,2]
[343186489,1732423838381,-514.36202677,0.00043596,2]
[343186490,1732423838390,-507.30751684,0.00043596,2]
[343186491,1732423838399,-500.0,0.00043596,2]
[343186492,1732423838409,-500.0,0.00043596,2]
[343186493,1732423838419,-500.0,0.00043596,2]
[343186494,1732423838428,-500.0,0.00043596,2]
[343186495,1732423838438,-500.0,0.00043596,2]
[343186496,1732423838447,-421.84857743,0.00043596,2]
[343186497,1732423838457,-500.0,0.00043596,2]
[343186498,1732423838466,-500.0,0.00043596,2]
[343186499,1732423838476,-500.0,0.00043596,2]
[343186500,1732423838485,-509.01856612,0.00043596,2]
[343186501,1732423838495,-500.0,0.00043596,2]
[343186502,1732423838506,-507.09317894,0.00043596,2]
[343186503,1732423838516,-500.0,0.00043596,2]
[343186504,1732423838526,-500.0,0.00043596,2]
[343186505,1732423838535,-500.0,0.00043596,2]
[343186506,1732423838545,-500.0,0.00043596,2]
[343186507,1732423838555,-500.0,0.00043596,2]
[343186508,1732423838564,-500.0,0.00043596,2]
[343186509,1732423838574,-500.0,0.00043596,2]
[343186510,1732423838585,-500.0,0.00043596,2]
[343186511,1732423838599,-500.0,0.00043596,2]
[343186512,1732423838608,-500.0,0.00043596,2]
[343186513,1732423838618,-500.0,0.00043596,2]
[343186514,1732423838629,-500.0,0.00043596,2]
[343186515,1732423838639,-500.0,0.00043596,2]
[343186516,1732423838648,-500.0,0.00043596,2]
[343186517,1732423838658,-500.0,0.00043596,2]
[343186518,1732423838667,-440.93707396,0.00043596,2]
[343186519,1732423838677,-500.0,0.00043596,2]
[343186520,1732423838686,-500.0,0.00043596,2]
[343186521,1732423838695,-500.0,0.00043596,2]
[343186522,1732423838703,-500.0,0.00043596,2]
[343186523,1732423838713,-500.0,0.00043596,2]
[343186524,1732423838721,-500.0,0.00043596,2]
[343186525,1732423838730,-500.0,0.00043596,2]
[343186526,1732423838740,-500.0,0.00043596,2]
[343186527,1732423838750,-500.0,0.00043596,2]
[343186528,1732423838764,-500.0,0.00043596,2]
[343186529,1732423838775,-517.39990276,0.00043596,2]
[343186530,1732423838787,-500.0,0.00043596,2]
[343186531,1732423838797,-500.0,0.00043596,2]
[343186532,1732423838807,-500.0,0.00043596,2]
[343186533,1732423838817,-500.0,0.00043596,2]
[343186534,1732423838827,-500.0,0.00043596,2]
[343186535,1732423838836,-500.0,0.00043596,2]
[343186536,1732423838846,-500.0,0.00043596,2]
[343186537,1732423838855,-500.0,0.00043596,2]
[343186538,1732423838864,-500.0,0.00043596,2]
[343186539,1732423838874,-500.0,0.00043596,2]
[343186540,1732423838883,-504.98037373,0.00043596,2]
[343186541,1732423838892,-500.0,0.00043596,2]
[343186542,1732423838901,-500.0,0.00043596,2]
[343186543,1732423838911,-500.0,0.00043596,2]
[343186544,1732423838921,-500.0,0.00043596,2]
[343186546,1732423838930,-500.0,0.00043596,2]
[343186548,1732423838939,-500.0,0.00043596,2]
[343186550,1732423838948,-3155.37491724,0.00043597,30]
[343186551,1732423838957,-2000.0,0.00043597,7]
[343186552,1732423838967,-200.0,0.00043597,7]
[343186553,1732423838978,-1886.60724,0.00043597,19]
[343186555,1732423838987,-200.0,0.00043597,7]
[343186556,1732423838997,-500.0,0.00043608,2]
[343186557,1732423839008,-500.0,0.00043608,2]
[343186558,1732423839017,-500.0,0.00043608,2]
[343186559,1732423839026,-500.0,0.00043608,2]
[343186560,1732423839036,-1396.28,0.00043608,2]
[343186561,1732423839045,-500.0,0.00043608,2]
[343186562,1732423839054,-500.0,0.00043608,2]
[343186563,1732423839063,-710.04,0.00043608,2]
[343186564,1732423839072,-500.0,0.00043608,2]
[343186565,1732423839082,-500.0,0.00043608,2]
[343186566,1732423839091,-500.0,0.00043608,2]
[343186567,1732423839100,-538.39589725,0.00043608,2]
[343186568,1732423839109,-500.0,0.00043608,2]
[343186569,1732423839119,-292.94,0.00043608,2]
[343186570,1732423839128,-784.62,0.00043608,2]
[343186571,1732423839137,-500.0,0.00043608,2]
[343186572,1732423839146,-500.0,0.00043608,2]
[343186573,1732423839156,-500.0,0.00043608,2]
[343186574,1732423839165,-500.0,0.00043609,2]
[343186575,1732423839174,-448.70740805,0.00043609,2]
[343186576,1732423839183,-500.0,0.00043609,2]
[343186577,1732423839192,-500.0,0.00043609,2]
[343186578,1732423839201,-500.0,0.00043609,2]
[343186579,1732423839211,-276.32638877,0.00043609,2]
[343186580,1732423839221,-500.0,0.00043609,2]
[343186581,1732423839230,-245.83,0.00043609,2]
[343186582,1732423839239,-500.0,0.00043609,2]
[343186583,1732423839248,-500.0,0.00043609,2]
[343186584,1732423839259,-500.0,0.00043609,2]
[343186585,1732423839269,-507.70500011,0.00043609,2]
[343186586,1732423839279,-500.0,0.00043609,2]
[343186587,1732423839289,-500.0,0.00043609,2]
[343186588,1732423839298,-607.71218677,0.00043609,2]
[343186589,1732423839308,-407.00219752,0.00043609,2]
[343186590,1732423839317,-511.35498947,0.00043609,2]
[343186591,1732423839326,-540.95851801,0.00043609,2]
[343186592,1732423839336,-500.0,0.00043609,2]
[343186593,1732423839346,-362.37289976,0.00043609,2]
[343186594,1732423839355,-500.0,0.00043609,2]
[343186595,1732423839365,-500.0,0.00043609,2]
[343186596,1732423839375,-175.8,0.00043609,2]
[343186597,1732423839385,-503.93397762,0.00043609,2]
[343186598,1732423839395,-384.23,0.00043609,2]
[343186599,1732423839405,-500.0,0.00043609,2]
[343186600,1732423839414,-500.0,0.00043609,2]
[343186601,1732423839423,-500.0,0.00043609,2]
[343186602,1732423839433,-505.9362961,0.00043609,2]
[343186603,1732423839443,-513.33195504,0.00043609,2]
[343186604,1732423839452,-500.0,0.00043609,2]
[343186605,1732423839462,-500.0,0.00043609,2]
[343186606,1732423839472,-500.0,0.00043609,2]
[343186607,1732423839481,-505.88903504,0.00043609,2]
[343186608,1732423839491,-232.29595725,0.00043609,2]
[343186609,1732423839502,-500.0,0.00043609,2]
[343186610,1732423839534,-591.66894123,0.00043609,2]
[343186611,1732423839546,-624.87,0.00043609,2]
[343186612,1732423839556,-500.0,0.00043609,2]
[343186613,1732423839566,-500.0,0.00043609,2]
[343186614,1732423839575,-602.95973799,0.00043609,2]
[343186615,1732423839587,-522.66307572,0.00043609,2]
[343186616,1732423839598,-500.0,0.00043609,2]
[343186617,1732423839608,-427.66433949,0.00043609,2]
[343186618,1732423839619,-500.0,0.00043609,2]
[343186619,1732423839630,-508.151525,0.00043609,2]
[343186620,1732423839640,-500.0,0.00043609,2]
[343186621,1732423839649,-500.0,0.00043609,2]
[343186622,1732423839658,-512.73528857,0.00043609,2]
[343186623,1732423839669,-500.0,0.00043609,2]
[343186624,1732423839680,-514.63212888,0.00043609,2]
[343186625,1732423839689,-500.0,0.00043609,2]
[343186626,1732423839698,-500.0,0.00043609,2]
[343186627,1732423839708,-508.90442664,0.00043609,2]
[343186628,1732423839718,-510.30389211,0.00043609,2]
[343186629,1732423839731,-500.0,0.00043609,2]
[343186630,1732423839741,-203.84680711,0.00043609,2]
[343186631,1732423839750,-514.31669144,0.00043609,2]
[343186632,1732423839763,-512.06805544,0.00043609,2]
[343186633,1732423839774,-397.6400982,0.00043609,2]
[343186634,1732423839783,-500.0,0.00043609,2]
[343186635,1732423839792,-500.0,0.00043609,2]
[343186636,1732423839802,-500.0,0.00043609,2]
[343186637,1732423839812,-508.78873451,0.00043609,2]
[343186638,1732423839821,-514.81851048,0.00043609,2]
[343186639,1732423839831,-502.48323158,0.00043609,2]
[343186640,1732423839840,-510.63112627,0.00043609,2]
[343186641,1732423839849,-507.4035704,0.00043609,2]
[343186642,1732423839859,-500.0,0.00043609,2]
[343186643,1732423839869,-500.0,0.00043609,2]
[343186644,1732423839878,-513.30465019,0.00043609,2]
[343186645,1732423839888,-500.0,0.00043609,2]
[343186646,1732423839897,-510.48354555,0.00043609,2]
[343186647,1732423839907,-500.0,0.00043609,2]
[343186648,1732423839916,-500.0,0.00043609,2]
[343186649,1732423839926,-500.0,0.00043609,2]
[343186650,1732423839935,-500.0,0.00043609,2]
[343186651,1732423839945,-511.12623339,0.00043609,2]
[343186652,1732423839954,-500.0,0.00043609,2]
[343186653,1732423839964,-513.66910712,0.00043609,2]
[343186654,1732423839974,-500.0,0.00043609,2]
[343186655,1732423839984,-507.6353553,0.00043609,2]
[343186656,1732423839995,-500.0,0.00043609,2]
[343186657,1732423840006,-500.0,0.00043609,2]
[343186659,1732423840162,-500.0,0.00043609,2]
[343186660,1732423840172,-500.0,0.00043609,2]
[343186661,1732423840182,-500.0,0.00043609,2]
[343186663,1732423840191,-500.0,0.00043609,2]
[343186665,1732423840201,-469.45516373,0.00043609,2]
[343186667,1732423840210,-500.0,0.00043609,2]
[343186669,1732423840220,-500.0,0.00043609,2]
[343186672,1732423840229,-500.0,0.00043609,2]
[343186674,1732423840239,-500.0,0.00043609,2]
[343186675,1732423840248,-645.62941332,0.00043609,2]
[343186676,1732423840259,-508.30335037,0.00043609,2]
[343186677,1732423840268,-558.04754309,0.00043609,2]
[343186678,1732423840277,-514.70065293,0.00043609,2]
[343186679,1732423840287,-505.9277073,0.00043609,2]
[343186680,1732423840297,-561.80155962,0.00043609,2]
[343186681,1732423840306,-500.0,0.00043609,2]
[343186682,1732423840315,-512.58234282,0.00043609,2]
[343186683,1732423840325,-500.0,0.00043609,2]
[343186684,1732423840335,-509.52519372,0.00043609,2]
[343186685,1732423840345,-593.85788907,0.00043609,2]
[343186686,1732423840355,-500.0,0.00043609,2]
[343186687,1732423840365,-513.05300102,0.00043609,2]
[343186688,1732423840376,-517.17983602,0.00043609,2]
[343186689,1732423840386,-500.0,0.00043609,2]
[343186690,1732423840397,-500.0,0.00043609,2]
[343186691,1732423840407,-500.0,0.00043609,2]
[343186692,1732423840417,-1725.2,0.00043609,2]
[343186693,1732423840427,-500.0,0.00043609,2]
[343186694,1732423840437,-500.0,0.00043609,2]
[343186695,1732423840447,-500.0,0.00043609,2]
[343186696,1732423840457,-500.0,0.00043609,2]
[343186697,1732423840467,-500.0,0.00043609,2]
[343186698,1732423840478,-500.0,0.00043609,2]
[343186699,1732423840488,-500.0,0.00043609,2]
[343186700,1732423840498,-500.0,0.00043609,2]
[343186701,1732423840509,-506.33488538,0.00043609,2]
[343186702,1732423840520,-524.34317477,0.00043609,2]
[343186703,1732423840530,-500.0,0.00043609,2]
[343186704,1732423840540,-496.32841745,0.00043609,2]
[343186705,1732423840551,-500.0,0.00043609,2]
[343186706,1732423840561,-500.0,0.00043609,2]
[343186707,1732423840571,-500.0,0.00043609,2]
[343186708,1732423840582,-500.0,0.00043609,2]
[343186709,1732423840594,-500.4227826,0.00043609,2]
[343186710,1732423840604,-500.0,0.00043609,2]
[343186711,1732423840614,-500.0,0.00043609,2]
[343186712,1732423840624,-550.74,0.00043609,2]
[343186714,1732423840635,-500.0,0.00043609,2]
[343186715,1732423840645,-507.27848563,0.00043609,2]
[343186716,1732423840655,-500.0,0.00043609,2]
[343186717,1732423840664,-505.35858404,0.00043609,2]
[343186718,1732423840675,-500.0,0.00043609,2]
[343186719,1732423840685,-10840.8792954,0.0004361,2]
[343186720,1732423840695,-37370.6895998,0.0004361,2]
[343186721,1732423840705,-1188.9090496,0.0004361,2]
[343186722,1732423840715,-4445.07178,0.0004361,2]
[343186723,1732423840724,-1684.5029466,0.0004361,2]
[343186724,1732423840733,-17125.5193314,0.0004367,2]
[343186725,1732423840742,-1700.0,0.000437,15]
[343186726,1732423840754,-3400.0,0.000438,15]
[343186727,1732423840767,-250.0,0.00043835,2]
[343186728,1732423840778,-500.0,0.00043873,10]
[343186729,1732423840788,-159.55734799,0.00043873,2]
[343186730,1732423840798,-203.0,0.00043875,30]
[343186731,1732423840808,-2555.46174038,0.00043876,2]
[343186732,1732423840817,-2178.58572998,0.00043879,2]
[343186733,1732423840827,-219.64111748,0.00043881,30]
[343186734,1732423840837,-32400.46641636,0.00043881,2]
[343186735,1732423840847,-792.75235236,0.00043891,2]
[343186736,1732423840857,-32400.46641636,0.00043897,2]
[343186737,1732423840867,-500.0,0.00043898,2]
[343186738,1732423840877,-1217.85,0.00043898,2]
[343186739,1732423840887,-500.0,0.00043898,2]
[343186740,1732423840895,-690.04,0.00043898,2]
[343186741,1732423840902,-500.0,0.00043898,2]
[343186742,1732423840909,-619.07,0.00043898,2]
[343186743,1732423840916,-500.0,0.00043898,2]
[343186744,1732423840922,-1207.56,0.00043898,2]
[343186745,1732423840929,-500.0,0.00043898,2]
[343186746,1732423840936,-1488.78,0.00043898,2]
[343186747,1732423840946,-1396.28,0.00043898,2]
[343186748,1732423840955,-627.1,0.00043898,2]
[343186749,1732423840964,-500.0,0.00043898,2]
[343186750,1732423840974,-500.0,0.00043898,2]
[343186751,1732423840983,-500.0,0.00043898,2]
[343186752,1732423840993,-500.0,0.00043898,2]
[343186753,1732423841002,-710.04,0.00043898,2]
[343186754,1732423841015,-6640.85,0.00043898,2]
[343186755,1732423841025,-572.16,0.00043898,2]
[343186756,1732423841034,-500.0,0.00043898,2]
[343186757,1732423841044,-500.0,0.00043898,2]
[343186758,1732423841054,-500.0,0.00043898,2]
[343186759,1732423841064,-1899.55,0.00043898,2]
[343186760,1732423841072,-500.0,0.00043898,2]
[343186761,1732423841082,-500.0,0.00043898,2]
[343186762,1732423841091,-784.62,0.00043898,2]
[343186763,1732423841101,-440.88,0.00043898,2]
[343186764,1732423841111,-500.0,0.00043898,2]
[343186765,1732423841120,-575.18,0.00043898,2]
[343186766,1732423841129,-518.62662093,0.00043898,2]
[343186767,1732423841139,-500.0,0.00043898,2]
[343186768,1732423841148,-500.0,0.00043899,2]
[343186769,1732423841157,-500.0,0.00043899,2]
[343186770,1732423841166,-303.76,0.00043899,2]
[343186771,1732423841176,-500.0,0.00043899,2]
[343186772,1732423841186,-500.0,0.00043899,2]
[343186773,1732423841195,-500.0,0.00043899,2]
[343186774,1732423841205,-486.62,0.00043899,2]
[343186775,1732423841214,-500.0,0.00043899,2]
[343186776,1732423841224,-500.0,0.00043899,2]
[343186777,1732423841233,-500.0,0.00043899,2]
[343186778,1732423841242,-500.0,0.00043899,2]
[343186779,1732423841252,-500.0,0.00043899,2]
[343186780,1732423841267,-500.0,0.00043899,2]
[343186781,1732423841276,-500.0,0.00043899,2]
[343186782,1732423841286,-500.0,0.00043899,2]
[343186783,1732423841295,-361.91,0.00043899,2]
[343186784,1732423841305,-500.0,0.00043899,2]
[343186785,1732423841314,-500.0,0.00043899,2]
[343186786,1732423841323,-500.0,0.00043899,2]
[343186787,1732423841332,-500.0,0.00043899,2]
[343186788,1732423841342,-500.0,0.00043899,2]
[343186789,1732423841352,-279.81,0.00043899,2]
[343186790,1732423841361,-386.72013475,0.00043899,2]
[343186791,1732423841371,-500.0,0.00043899,2]
[343186792,1732423841381,-500.0,0.00043899,2]
[343186793,1732423841390,-500.0,0.00043899,2]
[343186794,1732423841399,-500.0,0.00043899,2]
[343186795,1732423841409,-500.0,0.00043899,2]
[343186796,1732423841418,-500.0,0.00043899,2]
[343186797,1732423841428,-500.0,0.00043899,2]
[343186798,1732423841438,-500.0,0.00043899,2]
[343186799,1732423841447,-500.0,0.00043899,2]
[343186800,1732423841457,-500.0,0.00043899,2]
[343186801,1732423841467,-500.0,0.00043899,2]
[343186802,1732423841476,-500.0,0.00043899,2]
[343186803,1732423841487,-500.0,0.00043899,2]
[343186804,1732423841498,-500.0,0.00043899,2]
[343186805,1732423841512,-500.0,0.00043899,2]
[343186806,1732423841521,-500.0,0.00043899,2]
[343186807,1732423841531,-500.0,0.00043899,2]
[343186808,1732423841540,-500.0,0.00043899,2]
[343186809,1732423841549,-500.0,0.00043899,2]
[343186810,1732423841559,-500.0,0.00043899,2]
[343186811,1732423841569,-500.0,0.00043899,2]
[343186812,1732423841579,-500.0,0.00043899,2]
[343186813,1732423841591,-500.0,0.00043899,2]
[343186814,1732423841603,-500.0,0.00043899,2]
[343186815,1732423841613,-500.0,0.00043899,2]
[343186816,1732423841623,-500.0,0.00043899,2]
[343186817,1732423841633,-500.0,0.00043899,2]
[343186818,1732423841643,-500.0,0.00043899,2]
[343186819,1732423841653,-500.0,0.00043899,2]
[343186820,1732423841662,-500.0,0.00043899,2]
[343186821,1732423841672,-500.0,0.00043899,2]
[343186822,1732423841682,-500.0,0.00043899,2]
[343186823,1732423841691,-500.0,0.00043899,2]
[343186824,1732423841701,-500.0,0.00043899,2]
[343186825,1732423841711,-500.0,0.00043899,2]
[343186826,1732423841720,-500.0,0.00043899,2]
[343186827,1732423841730,-500.0,0.00043899,2]
[343186828,1732423841739,-500.0,0.00043899,2]
[343186829,1732423841748,-500.0,0.00043899,2]
[343186830,1732423841759,-500.0,0.00043899,2]
[343186831,1732423841769,-500.0,0.00043899,2]
[343186832,1732423841778,-500.0,0.00043899,2]
[343186833,1732423841787,-500.0,0.00043899,2]
[343186834,1732423841796,-500.0,0.00043899,2]